bitfinex-derivatives/quotes_BTCF0:USTF0_20210105
["timestamp","ask_amount","ask_price","bid_price","bid_amount"]
[1609845003934,0.13632608,31430.0,31422.0,0.13632608]
[1609845004234,0.13632608,31430.0,31423.0,0.094]
[1609845004435,0.13632608,31430.0,31422.0,0.13632608]
[1609845005235,0.13632608,31423.0,31422.0,0.13632608]
[1609845006637,0.13632608,31423.0,31418.0,4.1894]
[1609845007137,0.13632608,31419.0,31418.0,4.1894]
[1609845012244,0.13632608,31419.0,31418.0,4.2851]
[1609845013245,0.11381,31434.0,31418.0,4.42142608]
[1609845013445,0.01954333,31438.0,31418.0,4.42142608]
[1609845014047,0.01954333,31438.0,31418.0,0.23202608]
[1609845014446,0.01954333,31438.0,31419.0,0.0954]
[1609845014747,0.60096417,31438.0,31419.0,0.0954]
[1609845015247,0.13632608,31420.0,31419.0,0.0954]
[1609845016150,0.13632608,31420.0,31418.0,0.13632608]
[1609845018052,0.13632608,31420.0,31419.0,0.0948]
[1609845019155,0.13632608,31420.0,31418.0,0.13632608]
[1609845024166,0.13632608,31420.0,31405.0,2.06134295]
[1609845024360,0.13632608,31420.0,31409.0,4.2196]
[1609845025166,0.13632608,31410.0,31409.0,4.2196]
[1609845026666,0.13632608,31410.0,31405.0,2.06134295]
[1609845027265,0.13851,31413.0,31405.0,6.77754295]
[1609845027964,0.13851,31413.0,31405.0,4.7162]
[1609845028164,0.13851,31413.0,31404.0,2.07056447]
[1609845029164,0.13851,31413.0,31407.0,0.13632608]
[1609845029765,4.3074,31408.0,31407.0,0.13632608]
[1609845030466,4.3074,31408.0,31404.0,2.07056447]
[1609845030667,0.13851,31413.0,31404.0,2.07056447]
[1609845031267,0.13632608,31405.0,31404.0,2.07056447]
[1609845032067,3.89742608,31405.0,31404.0,2.07056447]
[1609845033869,3.89742608,31405.0,31398.0,2.2080419]
[1609845034472,3.89742608,31405.0,31398.0,0.13632608]
[1609845035271,0.13632608,31399.0,31398.0,0.13632608]
[1609845045087,0.13632608,31399.0,31387.0,2.07275032]
[1609845045289,3.6325,31402.0,31391.0,0.13632608]
[1609845046289,0.13559,31405.0,31391.0,0.13632608]
[1609845046490,0.13851,31413.0,31391.0,0.13632608]
[1609845046689,4.2267,31413.0,31392.0,4.6731]
[1609845047190,0.13632608,31393.0,31392.0,4.6731]
[1609845047390,0.13632608,31393.0,31391.0,0.23052608]
[1609845047792,4.5741,31405.0,31391.0,0.23052608]
[1609845049191,4.5741,31405.0,31396.0,0.13632608]
[1609845051193,0.13632608,31397.0,31396.0,0.13632608]
[1609845056099,0.13632608,31397.0,31396.0,0.79672608]
[1609845056498,0.13536,31406.0,31396.0,0.79672608]
[1609845056699,0.14822,31413.0,31397.0,0.0963]
[1609845056899,0.14822,31413.0,31403.0,3.7724]
[1609845057301,0.14822,31413.0,31407.0,0.13632608]
[1609845057501,0.14822,31413.0,31408.0,0.6182]
[1609845057901,0.2925,31421.0,31408.0,0.6182]
[1609845058406,0.01956239,31423.0,31408.0,0.0958]
[1609845058605,0.01956239,31423.0,31412.0,5.315]
[1609845059103,0.11012,31426.0,31412.0,5.315]
[1609845059303,0.13632608,31425.0,31422.0,0.13632608]
[1609845059503,0.01955893,31428.0,31422.0,0.13632608]
[1609845059703,0.12971,31433.0,31422.0,3.92332608]
[1609845060104,0.01955153,31435.0,31422.0,3.92332608]
[1609845060704,0.60043791,31438.0,31422.0,3.92332608]
[1609845061306,0.13632608,31427.0,31426.0,0.13632608]
[1609845062907,0.13632608,31427.0,31426.0,0.69722608]
[1609845063107,0.13958,31438.0,31426.0,0.69722608]
[1609845063311,0.13958,31438.0,31436.0,0.13632608]
[1609845063707,0.60021836,31440.0,31436.0,0.13632608]
[1609845063909,0.60021836,31440.0,31439.0,3.7149]
[1609845065107,0.60021836,31440.0,31436.0,0.13632608]
[1609845066109,4.7824,31447.0,31436.0,0.13632608]
[1609845067111,0.24209608,31453.0,31436.0,0.13632608]
[1609845067311,0.10577,31453.0,31450.0,0.13632608]
[1609845067712,0.10577,31453.0,31450.0,3.81172608]
[1609845068313,0.10577,31453.0,31450.0,0.13632608]
[1609845069313,0.13632608,31451.0,31450.0,0.13632608]
[1609845069811,0.13632608,31451.0,31450.0,4.34572608]
[1609845074320,0.01941221,31471.0,31450.0,4.34572608]
[1609845074521,0.01941221,31471.0,31450.0,0.13632608]
[1609845074721,0.01941221,31471.0,31450.0,4.36192608]
[1609845075321,0.01941221,31471.0,31459.0,0.13632608]
[1609845075723,0.01941221,31471.0,31460.0,4.5659]
[1609845077326,0.13632608,31461.0,31460.0,4.5659]
[1609845077724,0.09783,31467.0,31460.0,4.5659]
[1609845078726,0.09783,31467.0,31457.0,0.13632608]
[1609845078927,0.09783,31467.0,31466.0,4.5324]
[1609845079128,0.09783,31467.0,31457.0,0.13632608]
[1609845079328,0.09783,31467.0,31466.0,0.13632608]
[1609845080730,0.09783,31467.0,31466.0,0.23062608]
[1609845081130,0.09783,31467.0,31466.0,0.13632608]
[1609845081733,0.13632608,31478.0,31466.0,4.89362608]
[1609845082333,0.01929938,31496.0,31466.0,4.89362608]
[1609845083134,0.1771,31509.0,31466.0,0.13632608]
[1609845083337,0.2832,31511.0,31499.0,0.13632608]
[1609845083636,0.2832,31511.0,31509.0,4.8854]
[1609845083835,0.83787271,31513.0,31509.0,4.8854]
[1609845084235,0.83787271,31513.0,31499.0,0.13632608]
[1609845084536,4.18779,31512.0,31499.0,0.13632608]
[1609845085135,0.0948,31511.0,31490.0,4.008]
[1609845085337,0.13632608,31491.0,31490.0,4.008]
[1609845085536,0.13632608,31491.0,31489.0,0.13632608]
[1609845085736,0.25191608,31491.0,31489.0,0.13632608]
[1609845087137,0.25191608,31491.0,31490.0,3.7396]
[1609845089539,0.25191608,31491.0,31485.0,0.13632608]
[1609845089540,0.25191608,31491.0,31470.0,0.12135]
[1609845089740,0.25191608,31491.0,28808.0,1.7969]
[1609845089940,0.25191608,31491.0,31465.0,4.1105]
[1609845090341,0.25191608,31491.0,31465.0,4.22278]
[1609845091441,0.11559,31491.0,31473.0,0.13632608]
[1609845091640,0.0955,31500.0,31473.0,0.13632608]
[1609845091841,0.0955,31500.0,31477.0,4.1884]
[1609845093247,0.5488,31499.0,31477.0,4.1884]
[1609845093447,0.13632608,31478.0,31473.0,0.13632608]
[1609845094046,0.13632608,31478.0,31468.0,4.9295]
[1609845095349,0.13632608,31478.0,31472.0,0.13632608]
[1609845099356,0.13632608,31473.0,31472.0,0.13632608]
[1609845101062,0.09877,31480.0,31472.0,0.13632608]
[1609845101261,0.2976,31492.0,31472.0,0.13632608]
[1609845101463,0.13632608,31478.0,31477.0,4.7782]
[1609845102664,0.09764,31482.0,31477.0,4.7782]
[1609845103664,0.09764,31482.0,31476.0,0.13632608]
[1609845104165,0.09764,31482.0,31470.0,5.324]
[1609845105266,0.0948,31481.0,31470.0,5.324]
[1609845105466,0.13632608,31471.0,31470.0,5.46032608]
[1609845108069,0.13632608,31471.0,31470.0,0.13632608]
[1609845108468,0.13632608,31471.0,31463.0,4.3647]
[1609845109368,0.13632608,31464.0,31463.0,4.3647]
[1609845110169,0.13632608,31464.0,31455.0,0.23944608]
[1609845110369,0.13632608,31464.0,31455.0,0.13632608]
[1609845111070,0.13632608,31464.0,31456.0,0.6594]
[1609845111470,0.13632608,31464.0,31459.0,0.13632608]
[1609845112571,0.13632608,31464.0,31460.0,0.0961]
[1609845112770,0.13632608,31464.0,31459.0,0.13632608]
[1609845113874,0.13632608,31464.0,31460.0,0.0939]
[1609845115474,0.13632608,31464.0,31463.0,0.13632608]
[1609845117678,0.13632608,31464.0,31463.0,0.23192608]
[1609845118282,0.13632608,31464.0,31463.0,0.13632608]
[1609845118883,0.0946,31468.0,31463.0,0.13632608]
[1609845119082,0.10067,31475.0,31463.0,0.85662608]
[1609845119483,0.13632608,31468.0,31467.0,0.13632608]
[1609845121085,0.13632608,31468.0,31467.0,0.23252608]
[1609845121485,0.13632608,31468.0,31467.0,5.20412608]
[1609845122789,0.13632608,31468.0,31467.0,0.13632608]
[1609845123690,0.09764,31482.0,31467.0,0.72662608]
[1609845123893,0.01945987,31489.0,31467.0,0.13632608]
[1609845124091,0.01945801,31490.0,31479.0,4.7573]
[1609845125491,0.01945801,31490.0,31489.0,0.13632608]
[1609845125891,0.13632608,31496.0,31489.0,0.13632608]
[1609845126995,0.13632608,31496.0,31490.0,0.555]
[1609845127494,0.13632608,31496.0,31493.0,0.13632608]
[1609845131499,0.13632608,31496.0,31495.0,4.9396]
[1609845132601,0.13632608,31496.0,31493.0,0.13632608]
[1609845133802,0.13632608,31496.0,31495.0,4.5841]
[1609845135103,0.13632608,31496.0,31493.0,0.13632608]
[1609845136404,0.13632608,31496.0,31495.0,4.6611]
[1609845138706,0.8701459,31506.0,31495.0,4.6611]
[1609845139308,0.0194961,31505.0,31495.0,4.6611]
[1609845139507,0.1318861,31505.0,31504.0,0.13632608]
[1609845140109,0.11239,31505.0,31504.0,0.13632608]
[1609845140511,0.11239,31505.0,31504.0,4.42042608]
[1609845143213,0.11239,31505.0,31504.0,0.13632608]
[1609845143615,0.13632608,31510.0,31504.0,0.13632608]
[1609845145520,0.13632608,31510.0,31509.0,0.13632608]
[1609845147918,0.01947042,31520.0,31509.0,0.13632608]
[1609845148519,0.01947042,31520.0,31514.0,5.0478]
[1609845149720,0.01947042,31520.0,31519.0,0.13632608]
[1609845150121,0.0194645,31522.0,31519.0,0.86852608]
[1609845150324,0.0194645,31522.0,31519.0,0.13632608]
[1609845150522,0.0194645,31522.0,31521.0,3.9405]
[1609845151324,0.00031933,31535.0,31521.0,0.0944]
[1609845151521,0.00031933,31535.0,31520.0,0.13945]
[1609845151723,0.00031933,31535.0,31534.0,0.13632608]
[1609845152123,0.00031933,31535.0,31520.0,0.13945]
[1609845152322,4.1943,31534.0,31520.0,0.13945]
[1609845153325,0.00031933,31535.0,31520.0,0.13945]
[1609845153525,0.00031933,31535.0,31520.0,4.06245]
[1609845153725,0.13632608,31521.0,31520.0,4.06245]
[1609845154327,0.13632608,31521.0,31520.0,0.13945]
[1609845155329,0.13632608,31521.0,31513.0,0.12975]
[1609845155730,0.13632608,31514.0,31504.0,0.13632608]
[1609845155929,0.26570608,31514.0,31504.0,0.13632608]
[1609845156128,0.26570608,31514.0,31500.0,4.5929]
[1609845156329,0.26570608,31514.0,31496.0,0.12922]
[1609845156531,0.26570608,31514.0,31488.0,1.98282074]
[1609845157730,0.14962,31507.0,31490.0,0.13632608]
[1609845159631,0.13632608,31493.0,31490.0,0.13632608]
[1609845163332,0.13632608,31493.0,31476.0,1.99442973]
[1609845163733,3.5843,31489.0,31476.0,1.99442973]
[1609845163934,3.5843,31489.0,31476.0,2.12830973]
[1609845164933,3.5843,31489.0,31476.0,0.13388]
[1609845165733,3.5843,31489.0,31480.0,0.13632608]
[1609845165933,0.14152,31491.0,31480.0,0.13632608]
[1609845167633,0.14152,31491.0,31484.0,0.13632608]
[1609845169236,0.09334,31499.0,31484.0,0.13632608]
[1609845169437,5.0534,31500.0,31469.0,5.2734]
[1609845169640,5.0534,31500.0,31477.0,0.13632608]
[1609845169936,4.9571,31500.0,31477.0,0.13632608]
[1609845171640,0.13632608,31478.0,31477.0,0.13632608]
[1609845172039,0.27756608,31478.0,31477.0,0.13632608]
[1609845176445,0.14124,31478.0,31477.0,0.13632608]
[1609845177353,0.47657305,31497.0,31477.0,0.13632608]
[1609845177547,5.1052,31495.0,31477.0,0.13632608]
[1609845177747,0.13632608,31479.0,31477.0,0.13632608]
[1609845178148,4.1566,31478.0,31477.0,0.13632608]
[1609845178351,0.13632608,31479.0,31477.0,0.13632608]
[1609845178951,0.09187,31481.0,31477.0,0.13632608]
[1609845183058,0.13632608,31487.0,31477.0,0.13632608]
[1609845183756,0.0955,31504.0,31482.0,0.13632608]
[1609845185560,5.2329,31505.0,31482.0,0.13632608]
[1609845185759,0.13632608,31483.0,31482.0,0.13632608]
[1609845187360,4.35492608,31483.0,31473.0,0.14361]
[1609845187562,4.45072608,31483.0,31473.0,0.14361]
[1609845187762,0.13632608,31474.0,31473.0,0.14361]
[1609845187962,4.44302608,31474.0,31469.0,2.0302161]
[1609845188167,4.44302608,31474.0,31469.0,1.9987161]
[1609845188363,4.44302608,31474.0,31469.0,1.8257161]
[1609845188563,4.44302608,31474.0,31466.0,0.12058]
[1609845188764,4.44302608,31474.0,31457.0,0.09766]
[1609845188964,4.44302608,31474.0,31443.0,2.23178675]
[1609845189162,0.0942,31473.0,31443.0,2.23178675]
[1609845189763,0.13632608,31444.0,31443.0,2.23178675]
[1609845190669,0.13632608,31444.0,31442.0,2.2330145]
[1609845191769,4.0573,31450.0,31439.0,0.13632608]
[1609845191968,4.0573,31450.0,31439.0,0.14141]
[1609845192969,4.0573,31450.0,31432.0,2.36040887]
[1609845193272,4.1581,31450.0,31432.0,2.36040887]
[1609845193870,0.13632608,31443.0,31439.0,0.13632608]
[1609845197374,0.1008,31450.0,31439.0,0.13632608]
[1609845197774,0.13632608,31456.0,31449.0,0.13632608]
[1609845197975,0.13632608,31456.0,31449.0,0.24167608]
[1609845199274,5.2159,31454.0,31449.0,0.24167608]
[1609845199876,0.13632608,31450.0,31449.0,0.24167608]
[1609845200275,0.13632608,31450.0,31449.0,0.13632608]
[1609845200677,5.2159,31454.0,31449.0,0.13632608]
[1609845201078,0.09108,31459.0,31449.0,0.13632608]
[1609845201777,0.13632608,31451.0,31449.0,0.13632608]
[1609845202277,0.09108,31459.0,31449.0,0.13632608]
[1609845202877,5.0526,31466.0,31449.0,0.13632608]
[1609845203878,5.0526,31466.0,31453.0,0.13632608]
[1609845205782,5.0526,31466.0,31457.0,0.13632608]
[1609845206683,0.13412,31468.0,31457.0,0.13632608]
[1609845206885,0.10132,31477.0,31457.0,0.13632608]
[1609845207083,0.2785,31480.0,31457.0,0.13632608]
[1609845207284,0.4766508,31492.0,31457.0,0.13632608]
[1609845207485,0.4766508,31492.0,31457.0,0.22694608]
[1609845207684,0.4766508,31492.0,31461.0,4.6306]
[1609845207884,0.2712,31494.0,31472.0,0.13632608]
[1609845209685,0.3664,31494.0,31472.0,0.13632608]
[1609845209883,0.2712,31494.0,31477.0,0.13632608]
[1609845210083,0.0964,31499.0,31477.0,0.13632608]
[1609845210484,0.0964,31499.0,31467.0,0.10839]
[1609845210682,0.19486,31499.0,31467.0,0.10839]
[1609845211785,0.19486,31499.0,31469.0,0.13632608]
[1609845213889,0.13632608,31470.0,31469.0,0.13632608]
[1609845214487,0.11845,31481.0,31469.0,0.13632608]
[1609845215891,0.11845,31481.0,31475.0,0.13632608]
[1609845216892,5.1517,31478.0,31475.0,0.13632608]
[1609845217093,5.1517,31478.0,31467.0,0.10839]
[1609845217295,5.1517,31478.0,31457.0,4.45442]
[1609845217794,0.13632608,31458.0,31457.0,0.09062]
[1609845217994,0.13632608,31458.0,31456.0,0.13632608]
[1609845218996,0.13632608,31458.0,31454.0,2.03948951]
[1609845219198,0.13632608,31458.0,31447.0,0.10823]
[1609845219396,0.13632608,31458.0,31442.0,5.84259822]
[1609845219597,0.13632608,31458.0,31442.0,3.7948]
[1609845219797,4.1823,31464.0,31451.0,0.13632608]
[1609845221800,0.13632608,31458.0,31457.0,0.13632608]
[1609845221998,0.13632608,31458.0,31457.0,0.10862608]
[1609845222397,0.13632608,31458.0,31450.0,3.9988]
[1609845223798,0.12718,31466.0,31455.0,0.13632608]
[1609845224301,0.297,31473.0,31455.0,0.13632608]
[1609845224503,4.2848,31475.0,31455.0,0.13632608]
[1609845226000,4.2848,31475.0,31459.0,0.13632608]
[1609845227400,4.2848,31475.0,31450.0,3.9988]
[1609845228001,0.13632608,31455.0,31454.0,0.13632608]
[1609845228503,0.13632608,31455.0,31444.0,2.05016727]
[1609845228702,0.23958608,31455.0,31444.0,2.05016727]
[1609845229304,3.5823,31451.0,31444.0,2.05016727]
[1609845229905,0.13632608,31445.0,31444.0,2.05016727]
[1609845232110,0.13632608,31445.0,31428.0,2.98206148]
[1609845232111,0.13632608,31445.0,31428.0,2.07916226]
[1609845232909,0.13632608,31445.0,31429.0,2.07843431]
[1609845233609,0.13632608,31445.0,31430.0,2.0778444]
[1609845233909,0.13129,31448.0,31439.0,0.13632608]
[1609845234310,3.8128,31445.0,31439.0,0.13632608]
[1609845235713,0.13129,31448.0,31439.0,0.13632608]
[1609845235915,0.10326,31455.0,31447.0,0.13632608]
[1609845236313,0.12928,31463.0,31447.0,0.13632608]
[1609845236714,0.0953,31469.0,31447.0,0.13632608]
[1609845236914,0.3791,31467.0,31447.0,0.13632608]
[1609845237716,0.3791,31467.0,31435.0,2.19894794]
[1609845237917,3.6209,31462.0,31438.0,0.13632608]
[1609845238116,0.0954,31461.0,31438.0,0.13632608]
[1609845239720,0.0954,31461.0,31429.0,2.08438635]
[1609845239921,0.13632608,31430.0,31429.0,2.08438635]
[1609845241523,0.10999,31439.0,31428.0,0.13632608]
[1609845241924,0.10999,31439.0,31433.0,0.13632608]
[1609845243926,0.13632608,31434.0,31433.0,0.13632608]
[1609845244127,0.13632608,31434.0,31427.0,2.08601894]
[1609845245930,0.10999,31439.0,31432.0,0.13632608]
[1609845246131,3.9558,31442.0,31432.0,0.13632608]
[1609845247732,0.2927,31468.0,31432.0,0.13632608]
[1609845247934,0.13632608,31433.0,31432.0,0.13632608]
[1609845254637,0.13632608,31433.0,31427.0,2.09812352]
[1609845254837,3.6315,31431.0,31427.0,2.09812352]
[1609845255636,3.6315,31431.0,31423.0,2.09400304]
[1609845256037,0.13632608,31424.0,31423.0,2.09400304]
[1609845256639,0.13632608,31424.0,31417.0,2.09419144]
[1609845257739,0.13632608,31424.0,31416.0,0.13632608]
[1609845257740,0.13632608,31424.0,31418.0,2.09218584]
[1609845257938,0.11416,31429.0,31422.0,0.13632608]
[1609845259938,0.11416,31429.0,31428.0,0.13632608]
[1609845261942,0.13632608,31429.0,31428.0,0.13632608]
[1609845265445,0.09318,31442.0,31428.0,0.13632608]
[1609845265645,0.10378,31462.0,31428.0,0.13632608]
[1609845265845,4.2346,31458.0,31428.0,4.69202608]
[1609845266048,4.2346,31458.0,31435.0,0.13632608]
[1609845266244,0.2985,31453.0,31435.0,0.13632608]
[1609845267245,0.6294,31447.0,31435.0,0.13632608]
[1609845267446,0.10393,31447.0,31435.0,0.13632608]
[1609845267746,3.8219,31445.0,31424.0,2.05342372]
[1609845268148,0.10393,31447.0,31424.0,2.05342372]
[1609845268348,0.10393,31447.0,31424.0,5.79542372]
[1609845268548,0.10393,31447.0,31425.0,2.05393096]
[1609845269149,0.10393,31447.0,31426.0,3.7387]
[1609845269349,0.10393,31447.0,31425.0,2.05393096]
[1609845269553,0.10393,31447.0,31427.0,3.7091]
[1609845269751,0.10393,31447.0,31427.0,3.82054]
[1609845270153,0.10393,31447.0,31445.0,0.13632608]
[1609845271153,0.10393,31447.0,31427.0,3.82054]
[1609845272155,0.10393,31447.0,31440.0,0.13632608]
[1609845272555,0.10378,31462.0,31440.0,0.13632608]
[1609845272956,1.13928507,31470.0,31440.0,0.13632608]
[1609845273256,0.2907,31470.0,31440.0,0.13632608]
[1609845274054,0.2907,31470.0,31427.0,3.82054]
[1609845274055,0.2907,31470.0,31444.0,0.13632608]
[1609845275858,0.3939,31467.0,31444.0,0.13632608]
[1609845276058,0.13632608,31445.0,31444.0,0.13632608]
[1609845277159,0.13632608,31445.0,31434.0,4.5748]
[1609845278061,0.14787,31449.0,31435.0,0.13632608]
[1609845278864,4.9279,31440.0,31428.0,2.05600316]
[1609845280064,4.9279,31440.0,31420.0,0.14626]
[1609845280065,4.9279,31440.0,31438.0,0.13632608]
[1609845280266,0.12512,31442.0,31438.0,0.13632608]
[1609845280865,0.12512,31442.0,31429.0,4.7361]
[1609845281068,0.12512,31442.0,31424.0,2.06931099]
[1609845282066,0.12512,31442.0,31426.0,0.13632608]
[1609845284070,3.5865,31444.0,31438.0,0.13632608]
[1609845284271,0.14787,31449.0,31438.0,0.13632608]
[1609845284672,4.1705,31454.0,31438.0,0.13632608]
[1609845285673,4.1705,31454.0,31431.0,3.6623]
[1609845285873,4.27999,31454.0,31431.0,3.6623]
[1609845286073,4.27999,31454.0,31433.0,0.13632608]
[1609845288077,0.13632608,31435.0,31433.0,0.13632608]
[1609845289079,0.13632608,31435.0,31427.0,2.07083235]
[1609845289779,4.6637,31430.0,31427.0,2.07083235]
[1609845290180,0.13632608,31428.0,31427.0,2.07083235]
[1609845290381,0.13632608,31428.0,31422.0,2.21017987]
[1609845290783,0.13632608,31428.0,31422.0,2.07385379]
[1609845292084,0.13632608,31423.0,31422.0,2.07385379]
[1609845293686,0.13632608,31423.0,31414.0,0.13632608]
[1609845294085,0.13632608,31416.0,31414.0,0.13632608]
[1609845294286,0.13632608,31416.0,31414.0,2.20503679]
[1609845297891,0.13632608,31416.0,31414.0,0.13632608]
[1609845300593,0.1312,31421.0,31414.0,0.13632608]
[1609845300994,0.1312,31421.0,31415.0,4.1696]
[1609845301197,0.12312,31429.0,31414.0,0.13632608]
[1609845301395,0.11481,31437.0,31416.0,3.8999]
[1609845301595,0.4774177,31441.0,31416.0,3.8999]
[1609845302195,0.4774177,31441.0,31425.0,0.13632608]
[1609845302796,4.2577,31442.0,31425.0,0.13632608]
[1609845304197,0.13632608,31426.0,31425.0,0.13632608]
[1609845305497,0.13632608,31426.0,31416.0,5.97069078]
[1609845305899,0.13632608,31426.0,31416.0,2.07079078]
[1609845306305,0.1005,31427.0,31424.0,0.13632608]
[1609845307299,0.1005,31427.0,31416.0,2.07079078]
[1609845308099,0.1005,31427.0,31415.0,2.07067303]
[1609845308300,0.1005,31427.0,31421.0,0.13632608]
[1609845308500,0.1005,31427.0,31415.0,2.07067303]
[1609845308904,0.1005,31427.0,31416.0,2.07201627]
[1609845309203,0.1005,31427.0,31410.0,2.07689322]
[1609845309603,0.13927,31427.0,31410.0,2.07689322]
[1609845309903,0.13927,31427.0,31409.0,4.3912]
[1609845310205,0.13927,31427.0,31412.0,0.13632608]
[1609845310805,0.13927,31427.0,31409.0,4.3912]
[1609845311006,0.13927,31427.0,31407.0,2.07901595]
[1609845311408,5.0119,31423.0,31407.0,2.07901595]
[1609845311606,5.0119,31423.0,31406.0,2.08021238]
[1609845312006,0.13927,31427.0,31406.0,2.08021238]
[1609845312206,0.13632608,31417.0,31416.0,0.13632608]
[1609845312408,0.13927,31427.0,31416.0,0.70802608]
[1609845313409,0.13927,31427.0,31416.0,0.5717]
[1609845313611,0.13927,31427.0,31409.0,2.07996866]
[1609845313811,4.97237,31427.0,31409.0,2.07996866]
[1609845314015,4.97237,31427.0,31410.0,2.0795316]
[1609845314212,0.13632608,31411.0,31410.0,2.0795316]
[1609845315716,0.13632608,31411.0,31406.0,2.08224186]
[1609845316116,0.14998,31417.0,31406.0,2.08224186]
[1609845316317,0.14998,31417.0,31415.0,0.13632608]
[1609845317217,0.14998,31417.0,31406.0,2.08224186]
[1609845317818,5.13258,31417.0,31406.0,2.08224186]
[1609845318218,0.13632608,31407.0,31406.0,2.08224186]
[1609845318419,0.13632608,31407.0,31404.0,2.2202727]
[1609845318620,0.13632608,31407.0,31404.0,2.08394662]
[1609845320723,0.13632608,31407.0,31400.0,2.19037442]
[1609845322024,0.13632608,31407.0,31400.0,0.10145]
[1609845322223,0.13632608,31401.0,31400.0,0.10145]
[1609845322523,0.13632608,31401.0,31397.0,0.13632608]
[1609845326231,0.13632608,31404.0,31397.0,0.13632608]
[1609845327932,0.14998,31417.0,31397.0,0.13632608]
[1609845328133,0.271,31428.0,31397.0,0.13632608]
[1609845328334,0.13632608,31413.0,31412.0,0.13632608]
[1609845329134,4.3927,31421.0,31412.0,0.13632608]
[1609845330438,0.13632608,31413.0,31408.0,0.11387]
[1609845330639,0.13632608,31413.0,31407.0,0.13632608]
[1609845331038,0.0942,31412.0,31403.0,2.08910742]
[1609845331237,0.13632608,31413.0,31402.0,3.8809]
[1609845331838,0.13632608,31413.0,31399.0,2.09204931]
[1609845332039,5.1285,31407.0,31399.0,2.09204931]
[1609845332242,5.1285,31407.0,31402.0,0.13632608]
[1609845332441,5.1285,31407.0,31403.0,0.0944]
[1609845332640,5.1285,31407.0,31402.0,0.13632608]
[1609845332940,5.1285,31407.0,31397.0,2.09406776]
[1609845333141,0.0963,31406.0,31395.0,2.09868079]
[1609845333943,5.1285,31407.0,31395.0,2.09868079]
[1609845334344,0.13632608,31396.0,31395.0,2.23500687]
[1609845334543,0.13632608,31396.0,31395.0,2.19288079]
[1609845334745,0.13632608,31396.0,31395.0,2.09868079]
[1609845334944,0.13632608,31396.0,31395.0,6.67278079]
[1609845335143,0.0964,31408.0,31395.0,6.67278079]
[1609845335544,0.0964,31408.0,31395.0,4.5741]
[1609845335844,0.0964,31408.0,31395.0,4.6691]
[1609845336043,0.12938,31409.0,31395.0,4.5741]
[1609845336244,0.12938,31409.0,31398.0,0.13632608]
[1609845337347,0.10099,31416.0,31398.0,0.13632608]
[1609845337543,0.47761574,31428.0,31398.0,0.13632608]
[1609845337747,0.47761574,31428.0,31395.0,4.5741]
[1609845338246,0.13632608,31396.0,31395.0,4.5741]
[1609845338447,0.13632608,31396.0,31394.0,0.13632608]
[1609845341248,0.11863,31398.0,31394.0,0.13632608]
[1609845342349,4.4656,31397.0,31394.0,0.13632608]
[1609845342750,4.4656,31397.0,31390.0,2.11520491]
[1609845342951,4.4656,31397.0,31392.0,2.11394604]
[1609845343752,0.0942,31396.0,31393.0,0.0958]
[1609845343952,4.4656,31397.0,31392.0,2.04904604]
[1609845344151,4.4656,31397.0,31392.0,1.98584604]
[1609845344351,0.13632608,31393.0,31392.0,1.98584604]
[1609845344552,0.75832608,31393.0,31392.0,1.98584604]
[1609845344953,0.85472608,31393.0,31392.0,1.98584604]
[1609845345156,0.85472608,31393.0,31392.0,0.0955]
[1609845345354,0.75832608,31393.0,31392.0,0.0886]
[1609845345553,0.75832608,31393.0,31385.0,2.30775798]
[1609845345954,0.75832608,31393.0,31386.0,0.0955]
[1609845346253,0.75832608,31393.0,31379.0,5.0585]
[1609845346454,0.13632608,31380.0,31379.0,5.0585]
[1609845346655,0.13632608,31380.0,31377.0,0.11934]
[1609845348159,0.13632608,31380.0,31371.0,2.31753157]
[1609845348356,0.13632608,31374.0,31372.0,0.13632608]
[1609845349457,0.23142608,31374.0,31372.0,0.13632608]
[1609845350160,0.13632608,31374.0,31372.0,0.13632608]
[1609845350759,0.13632608,31374.0,31367.0,2.31127689]
[1609845350961,0.13632608,31374.0,31365.0,2.30695294]
[1609845351159,0.23272608,31374.0,31365.0,2.30695294]
[1609845351466,0.13632608,31374.0,31365.0,2.30695294]
[1609845352061,0.13632608,31374.0,31362.0,2.3104131]
[1609845352461,0.13632608,31363.0,31362.0,2.3104131]
[1609845352667,0.13632608,31363.0,31361.0,0.13632608]
[1609845353664,0.11248,31367.0,31361.0,0.13632608]
[1609845354164,0.0953,31366.0,31362.0,0.0956]
[1609845354564,0.0953,31366.0,31365.0,0.13632608]
[1609845354763,0.0953,31366.0,31365.0,0.23172608]
[1609845355166,0.11248,31367.0,31365.0,0.13632608]
[1609845355565,0.11248,31367.0,31358.0,2.11903235]
[1609845356466,0.0969,31366.0,31361.0,0.13632608]
[1609845356666,0.0969,31366.0,31362.0,0.0966]
[1609845357167,0.11248,31367.0,31362.0,0.0966]
[1609845357368,0.11248,31367.0,31358.0,2.11903235]
[1609845357769,0.6517,31367.0,31358.0,2.11903235]
[1609845358168,0.09849,31390.0,31358.0,2.11903235]
[1609845358368,4.235,31367.0,31354.0,2.11597571]
[1609845358569,0.26535608,31359.0,31354.0,2.11597571]
[1609845358970,5.3351,31354.0,31350.0,0.13632608]
[1609845359169,5.3351,31354.0,31351.0,0.0957]
[1609845359370,5.3351,31354.0,31352.0,0.0946]
[1609845359570,5.3351,31354.0,31350.0,0.13632608]
[1609845359770,5.3351,31354.0,31337.0,2.97607979]
[1609845359771,5.3351,31354.0,31345.0,2.11288968]
[1609845360171,5.4297,31354.0,31345.0,2.11288968]
[1609845360474,0.13632608,31346.0,31345.0,2.11288968]
[1609845360673,0.13632608,31346.0,31339.0,2.24993362]
[1609845360874,0.13632608,31346.0,31341.0,5.0684]
[1609845361071,0.13632608,31346.0,31342.0,0.0955]
[1609845361875,0.13632608,31346.0,31339.0,2.24993362]
[1609845362074,0.13632608,31346.0,31339.0,0.13632608]
[1609845363476,0.13632608,31346.0,31340.0,0.0967]
[1609845363675,0.13632608,31346.0,31341.0,0.0967]
[1609845363876,0.68429143,31389.0,31339.0,0.25742608]
[1609845364078,4.1708,31369.0,31339.0,0.25742608]
[1609845364476,4.1708,31369.0,31363.0,0.13632608]
[1609845364677,0.2897,31380.0,31363.0,0.13632608]
[1609845364877,4.6523,31379.0,31363.0,0.13632608]
[1609845365076,4.77613,31379.0,31363.0,0.13632608]
[1609845365476,4.77613,31379.0,31354.0,4.7867]
[1609845365876,0.12383,31379.0,31344.0,0.0943]
[1609845366077,5.2402,31368.0,31344.0,0.0943]
[1609845366276,5.37978,31368.0,31344.0,0.0943]